[Event "Titled Tuesday Blitz July 25 Late 2023"]
[White "Anton Guijarro, David"]
[Black "Naroditsky, Daniel"]
[WhiteFideId "2285525"]
[BlackFideId "2026961"]
[WhiteElo "2974"]
[BlackElo "3140"]
[Result "1-0"]
[Round "10"]
[TimeControl "180+2"]
[Date "2023.07.25"]
[WhiteClock "0:00:09"]
[BlackClock "0:00:03"]
[Board "5"]

1. d4 {[%clk 0:03:00]}  Nf6 {[%clk 0:02:58]} 2. Nf3 {[%clk 0:03:01]}  g6 {[%clk 0:02:57]} 3. Bg5 {[%clk 0:03:01]}  Bg7 {[%clk 0:02:57]} 4. Nbd2 {[%clk 0:03:02]}  O-O {[%clk 0:02:57]} 5. e4 {[%clk 0:03:02]}  d5 {[%clk 0:02:57]} 6. exd5 {[%clk 0:03:02]}  Nxd5 {[%clk 0:02:55]} 7. c3 {[%clk 0:03:02]}  Nd7 {[%clk 0:02:54]} 8. Bc4 {[%clk 0:03:00]}  N5b6 {[%clk 0:02:46]} 9. Bb3 {[%clk 0:03:00]}  c5 {[%clk 0:02:47]} 10. O-O {[%clk 0:03:00]}  cxd4 {[%clk 0:02:47]} 11. Nxd4 {[%clk 0:03:00]}  Nc5 {[%clk 0:02:47]} 12. Re1 {[%clk 0:03:00]}  Re8 {[%clk 0:02:38]} 13. N2f3 {[%clk 0:02:52]}  Nxb3 {[%clk 0:02:15]} 14. Qxb3 {[%clk 0:02:51]}  h6 {[%clk 0:01:56]} 15. Bh4 {[%clk 0:02:41]}  Qc7 {[%clk 0:01:29]} 16. Nb5 {[%clk 0:02:31]}  Qc5 {[%clk 0:01:27]} 17. Bg3 {[%clk 0:01:40]}  e5 {[%clk 0:01:16]} 18. Qb4 {[%clk 0:01:39]}  Qxb4 {[%clk 0:01:10]} 19. cxb4 {[%clk 0:01:40]}  Nd5 {[%clk 0:00:36]} 20. Bxe5 {[%clk 0:01:30]}  Bg4 {[%clk 0:00:28]} 21. Bxg7 {[%clk 0:01:22]}  Rxe1+ {[%clk 0:00:26]} 22. Rxe1 {[%clk 0:01:20]}  Kxg7 {[%clk 0:00:27]} 23. Ne5 {[%clk 0:01:11]}  Be6 {[%clk 0:00:28]} 24. a3 {[%clk 0:01:08]}  Rc8 {[%clk 0:00:17]} 25. Nd4 {[%clk 0:01:08]}  Bf5 {[%clk 0:00:12]} 26. g4 {[%clk 0:01:03]}  Be6 {[%clk 0:00:12]} 27. Nxe6+ {[%clk 0:00:59]}  fxe6 {[%clk 0:00:13]} 28. Nd3 {[%clk 0:00:59]}  Rc2 {[%clk 0:00:06]} 29. Nc5 {[%clk 0:00:42]}  Rxb2 {[%clk 0:00:07]} 30. Nxb7 {[%clk 0:00:42]}  Nf4 {[%clk 0:00:05]} 31. Nc5 {[%clk 0:00:39]}  Kf6 {[%clk 0:00:06]} 32. h4 {[%clk 0:00:36]}  g5 {[%clk 0:00:04]} 33. Ne4+ {[%clk 0:00:34]}  Kg6 {[%clk 0:00:05]} 34. hxg5 {[%clk 0:00:34]}  hxg5 {[%clk 0:00:06]} 35. Nc5 {[%clk 0:00:33]}  Kf6 {[%clk 0:00:05]} 36. Re3 {[%clk 0:00:33]}  Ra2 {[%clk 0:00:04]} 37. b5 {[%clk 0:00:25]}  Rb2 {[%clk 0:00:02]} 38. a4 {[%clk 0:00:22]}  Rb4 {[%clk 0:00:03]} 39. Ra3 {[%clk 0:00:19]}  Rc4 {[%clk 0:00:02]} 40. Nd7+ {[%clk 0:00:18]}  Ke7 {[%clk 0:00:02]} 41. Ne5 {[%clk 0:00:18]}  Rc1+ {[%clk 0:00:03]} 42. Kh2 {[%clk 0:00:19]}  Kd6 {[%clk 0:00:03]} 43. Nc6 {[%clk 0:00:18]}  a6 {[%clk 0:00:02]} 44. Nd4 {[%clk 0:00:18]}  axb5 {[%clk 0:00:03]} 45. Nxb5+ {[%clk 0:00:18]}  Ke7 {[%clk 0:00:02]} 46. a5 {[%clk 0:00:18]}  Rc2 {[%clk 0:00:02]} 47. a6 {[%clk 0:00:17]}  Rxf2+ {[%clk 0:00:02]} 48. Kg1 {[%clk 0:00:17]}  Rg2+ {[%clk 0:00:02]} 49. Kf1 {[%clk 0:00:17]}  Rh2 {[%clk 0:00:01]} 50. a7 {[%clk 0:00:17]}  Rh1+ {[%clk 0:00:02]} 51. Kf2 {[%clk 0:00:17]}  Rh2+ {[%clk 0:00:03]} 52. Kg1 {[%clk 0:00:16]}  Rh8 {[%clk 0:00:02]} 53. a8=Q {[%clk 0:00:16]}  Rxa8 {[%clk 0:00:03]} 54. Rxa8 {[%clk 0:00:17]}  Kf6 {[%clk 0:00:04]} 55. Ra5 {[%clk 0:00:14]}  Nd5 {[%clk 0:00:02]} 56. Ra4 {[%clk 0:00:08]}  Nf4 {[%clk 0:00:02]} 57. Kh2 {[%clk 0:00:08]}  Ke5 {[%clk 0:00:03]} 58. Kg3 {[%clk 0:00:08]}  Ne2+ {[%clk 0:00:03]} 59. Kf2 {[%clk 0:00:08]}  Nf4 {[%clk 0:00:04]} 60. Na7 {[%clk 0:00:08]}  Nd3+ {[%clk 0:00:03]} 61. Kg3 {[%clk 0:00:09]}  Kf6 {[%clk 0:00:03]} 62. Ra5 {[%clk 0:00:09]}  Ne5 {[%clk 0:00:01]} 63. Nc8 {[%clk 0:00:08]}  Nc4 {[%clk 0:00:02]} 64. Ra4 {[%clk 0:00:07]}  Nd2 {[%clk 0:00:01]} 65. Nd6 {[%clk 0:00:07]}  Ke5 {[%clk 0:00:02]} 66. Nc4+ {[%clk 0:00:07]}  Nxc4 {[%clk 0:00:02]} 67. Rxc4 {[%clk 0:00:08]}  Kd5 {[%clk 0:00:03]} 68. Ra4 {[%clk 0:00:08]}  Ke5 {[%clk 0:00:03]} 69. Kf3 {[%clk 0:00:08]}  Kf6 {[%clk 0:00:03]} 70. Ke4 {[%clk 0:00:09]} 1-0


[Site "https://www.chess.com"]

[Event "Titled Tuesday Blitz July 25 Late 2023"]
[White "Zhigalko, Sergei"]
[Black "Tarhan, Adar"]
[WhiteFideId "13502956"]
[BlackFideId "34544712"]
[WhiteElo "2887"]
[BlackElo "2616"]
[Result "1-0"]
[Round "10"]
[TimeControl "180+2"]
[Date "2023.07.25"]
[WhiteClock "0:00:24"]
[BlackClock "0:01:34"]
[Board "17"]

1. e4 {[%clk 0:03:00]}  c6 {[%clk 0:02:59]} 2. d4 {[%clk 0:03:01]}  d5 {[%clk 0:03:00]} 3. e5 {[%clk 0:03:01]}  Bf5 {[%clk 0:02:59]} 4. Nf3 {[%clk 0:03:02]}  e6 {[%clk 0:02:59]} 5. Be2 {[%clk 0:03:02]}  c5 {[%clk 0:02:58]} 6. Be3 {[%clk 0:03:02]}  Nc6 {[%clk 0:02:58]} 7. dxc5 {[%clk 0:03:02]}  Nge7 {[%clk 0:02:55]} 8. c3 {[%clk 0:03:02]}  Bg4 {[%clk 0:02:52]} 9. Nbd2 {[%clk 0:03:02]}  Bxf3 {[%clk 0:02:52]} 10. Nxf3 {[%clk 0:03:02]}  Ng6 {[%clk 0:02:53]} 11. Bd4 {[%clk 0:03:00]}  Qa5 {[%clk 0:02:49]} 12. b4 {[%clk 0:02:56]}  Qa3 {[%clk 0:02:49]} 13. O-O {[%clk 0:02:54]}  Be7 {[%clk 0:02:44]} 14. Qb3 {[%clk 0:02:31]}  Qxb3 {[%clk 0:02:43]} 15. axb3 {[%clk 0:02:32]}  Kd7 {[%clk 0:02:42]} 16. b5 {[%clk 0:02:23]}  Nxd4 {[%clk 0:02:17]} 17. cxd4 {[%clk 0:02:22]}  Rhc8 {[%clk 0:02:16]} 18. g3 {[%clk 0:01:43]}  f6 {[%clk 0:02:14]} 19. Bd3 {[%clk 0:01:43]}  Nf8 {[%clk 0:02:07]} 20. Ra2 {[%clk 0:01:38]}  Kc7 {[%clk 0:02:05]} 21. Rfa1 {[%clk 0:01:31]}  Kb8 {[%clk 0:02:04]} 22. b6 {[%clk 0:01:27]}  a6 {[%clk 0:02:04]} 23. b4 {[%clk 0:01:24]}  Nd7 {[%clk 0:02:04]} 24. exf6 {[%clk 0:01:09]}  Bxf6 {[%clk 0:02:05]} 25. Re1 {[%clk 0:01:09]}  Re8 {[%clk 0:02:02]} 26. Bxh7 {[%clk 0:01:06]}  e5 {[%clk 0:01:59]} 27. Bf5 {[%clk 0:01:05]}  e4 {[%clk 0:01:52]} 28. Bxd7 {[%clk 0:01:03]}  Rd8 {[%clk 0:01:53]} 29. Bg4 {[%clk 0:00:26]}  exf3 {[%clk 0:01:34]} 30. Rd1 {[%clk 0:00:24]} 1-0


[Site "https://www.chess.com"]

[Event "Titled Tuesday Blitz July 25 Late 2023"]
[White "Maksimovic, Bojan"]
[Black "Weetik, Vjacheslav"]
[WhiteFideId "14408120"]
[BlackFideId "4153472"]
[WhiteElo "2890"]
[BlackElo "2679"]
[Result "1/2-1/2"]
[Round "10"]
[TimeControl "180+2"]
[Date "2023.07.25"]
[WhiteClock "0:01:42"]
[BlackClock "0:00:11"]
[Board "20"]

1. e4 {[%clk 0:03:00]}  c6 {[%clk 0:02:57]} 2. d4 {[%clk 0:03:00]}  d5 {[%clk 0:02:57]} 3. Nc3 {[%clk 0:03:01]}  dxe4 {[%clk 0:02:57]} 4. Nxe4 {[%clk 0:03:02]}  Bf5 {[%clk 0:02:58]} 5. Nc5 {[%clk 0:03:03]}  b6 {[%clk 0:02:55]} 6. Nb3 {[%clk 0:03:03]}  e6 {[%clk 0:02:55]} 7. Nf3 {[%clk 0:03:04]}  Bd6 {[%clk 0:02:53]} 8. g3 {[%clk 0:03:04]}  h6 {[%clk 0:02:49]} 9. Bg2 {[%clk 0:03:05]}  Ne7 {[%clk 0:02:50]} 10. O-O {[%clk 0:03:05]}  Nd7 {[%clk 0:02:50]} 11. Re1 {[%clk 0:03:05]}  O-O {[%clk 0:02:44]} 12. Nbd2 {[%clk 0:03:06]}  Rc8 {[%clk 0:02:40]} 13. Nc4 {[%clk 0:03:03]}  Bb8 {[%clk 0:02:40]} 14. c3 {[%clk 0:02:43]}  c5 {[%clk 0:02:29]} 15. Ne3 {[%clk 0:02:43]}  Bh7 {[%clk 0:02:23]} 16. d5 {[%clk 0:02:42]}  exd5 {[%clk 0:02:13]} 17. Nxd5 {[%clk 0:02:43]}  Nxd5 {[%clk 0:02:13]} 18. Qxd5 {[%clk 0:02:44]}  Nf6 {[%clk 0:02:13]} 19. Qxd8 {[%clk 0:02:44]}  Rfxd8 {[%clk 0:02:13]} 20. Be3 {[%clk 0:02:45]}  Be4 {[%clk 0:02:06]} 21. a4 {[%clk 0:02:45]}  Bc6 {[%clk 0:01:57]} 22. Nd2 {[%clk 0:02:45]}  Bxg2 {[%clk 0:01:38]} 23. Kxg2 {[%clk 0:02:45]}  Nd5 {[%clk 0:01:38]} 24. Nc4 {[%clk 0:02:46]}  a6 {[%clk 0:01:36]} 25. Red1 {[%clk 0:02:46]}  b5 {[%clk 0:01:34]} 26. axb5 {[%clk 0:02:46]}  axb5 {[%clk 0:01:35]} 27. Rxd5 {[%clk 0:02:43]}  Rxd5 {[%clk 0:01:22]} 28. Nb6 {[%clk 0:02:44]}  Rdd8 {[%clk 0:01:16]} 29. Nxc8 {[%clk 0:02:44]}  Rxc8 {[%clk 0:01:17]} 30. Ra8 {[%clk 0:02:44]}  g5 {[%clk 0:01:06]} 31. Bxc5 {[%clk 0:02:41]}  Rxc5 {[%clk 0:01:05]} 32. Rxb8+ {[%clk 0:02:42]}  Kg7 {[%clk 0:01:06]} 33. Kf3 {[%clk 0:02:43]}  Rf5+ {[%clk 0:00:56]} 34. Ke3 {[%clk 0:02:43]}  g4 {[%clk 0:00:56]} 35. Rb6 {[%clk 0:02:40]}  h5 {[%clk 0:00:56]} 36. b4 {[%clk 0:02:37]}  Rf3+ {[%clk 0:00:55]} 37. Kd4 {[%clk 0:02:36]}  Rxf2 {[%clk 0:00:53]} 38. Rxb5 {[%clk 0:02:36]}  Rxh2 {[%clk 0:00:53]} 39. Rg5+ {[%clk 0:02:32]}  Kh6 {[%clk 0:00:49]} 40. Rg8 {[%clk 0:02:31]}  Kh7 {[%clk 0:00:41]} 41. Rg5 {[%clk 0:02:31]}  Kh6 {[%clk 0:00:41]} 42. Rg8 {[%clk 0:02:31]}  Kh7 {[%clk 0:00:41]} 43. Re8 {[%clk 0:02:32]}  f5 {[%clk 0:00:34]} 44. Rf8 {[%clk 0:02:24]}  Kg6 {[%clk 0:00:32]} 45. b5 {[%clk 0:02:25]}  Rb2 {[%clk 0:00:19]} 46. c4 {[%clk 0:02:25]}  Kg5 {[%clk 0:00:15]} 47. Rg8+ {[%clk 0:02:25]}  Kf6 {[%clk 0:00:10]} 48. Kc3 {[%clk 0:02:25]}  Rb1 {[%clk 0:00:08]} 49. Kc2 {[%clk 0:02:26]}  Rb4 {[%clk 0:00:08]} 50. Rc8 {[%clk 0:02:23]}  f4 {[%clk 0:00:07]} 51. gxf4 {[%clk 0:02:24]}  g3 {[%clk 0:00:06]} 52. Kc3 {[%clk 0:02:24]}  Rb1 {[%clk 0:00:07]} 53. Rg8 {[%clk 0:02:24]}  h4 {[%clk 0:00:07]} 54. Kc2 {[%clk 0:02:24]}  Rb4 {[%clk 0:00:07]} 55. Kc3 {[%clk 0:02:24]}  Rb1 {[%clk 0:00:07]} 56. Rg5 {[%clk 0:02:22]}  Ke6 {[%clk 0:00:03]} 57. Kd4 {[%clk 0:02:22]}  Rd1+ {[%clk 0:00:02]} 58. Kc5 {[%clk 0:02:17]}  Rd2 {[%clk 0:00:03]} 59. b6 {[%clk 0:02:17]}  g2 {[%clk 0:00:03]} 60. b7 {[%clk 0:02:11]}  Rb2 {[%clk 0:00:04]} 61. Rxg2 {[%clk 0:01:56]}  Rxb7 {[%clk 0:00:04]} 62. Rg6+ {[%clk 0:01:57]}  Kf5 {[%clk 0:00:03]} 63. Rh6 {[%clk 0:01:55]}  Kg4 {[%clk 0:00:03]} 64. f5 {[%clk 0:01:55]}  Rf7 {[%clk 0:00:02]} 65. f6 {[%clk 0:01:55]}  Kg5 {[%clk 0:00:03]} 66. Rh8 {[%clk 0:01:52]}  Rxf6 {[%clk 0:00:03]} 67. Kd5 {[%clk 0:01:52]}  Rh6 {[%clk 0:00:03]} 68. Rxh6 {[%clk 0:01:31]}  Kxh6 {[%clk 0:00:04]} 69. Ke4 {[%clk 0:01:32]}  Kg6 {[%clk 0:00:04]} 70. c5 {[%clk 0:01:32]}  Kf6 {[%clk 0:00:04]} 71. c6 {[%clk 0:01:32]}  Ke6 {[%clk 0:00:04]} 72. c7 {[%clk 0:01:33]}  Kd7 {[%clk 0:00:05]} 73. c8=Q+ {[%clk 0:01:34]}  Kxc8 {[%clk 0:00:05]} 74. Kf4 {[%clk 0:01:35]}  Kd7 {[%clk 0:00:06]} 75. Kg4 {[%clk 0:01:35]}  Ke6 {[%clk 0:00:06]} 76. Kh3 {[%clk 0:01:36]}  Kf5 {[%clk 0:00:06]} 77. Kh2 {[%clk 0:01:37]}  Kg5 {[%clk 0:00:07]} 78. Kh1 {[%clk 0:01:38]}  Kg4 {[%clk 0:00:08]} 79. Kg1 {[%clk 0:01:39]}  Kg3 {[%clk 0:00:09]} 80. Kh1 {[%clk 0:01:40]}  h3 {[%clk 0:00:09]} 81. Kg1 {[%clk 0:01:41]}  h2+ {[%clk 0:00:10]} 82. Kh1 {[%clk 0:01:42]}  Kh3 {[%clk 0:00:11]} 1/2-1/2


[Site "https://www.chess.com"]

[Event "Titled Tuesday Blitz July 25 Late 2023"]
[White "Bartel, Mateusz"]
[Black "Bernabeu Lopez, Carlos Javier"]
[WhiteFideId "1112635"]
[BlackFideId "2235366"]
[WhiteElo "2836"]
[BlackElo "2665"]
[Result "0-1"]
[Round "10"]
[TimeControl "180+2"]
[Date "2023.07.25"]
[WhiteClock "0:00:00"]
[BlackClock "0:00:18"]
[Board "22"]

1. Nf3 {[%clk 0:03:00]}  Nf6 {[%clk 0:02:55]} 2. b3 {[%clk 0:03:00]}  g6 {[%clk 0:02:55]} 3. Bb2 {[%clk 0:03:01]}  Bg7 {[%clk 0:02:56]} 4. d4 {[%clk 0:03:01]}  O-O {[%clk 0:02:56]} 5. e3 {[%clk 0:03:01]}  d5 {[%clk 0:02:56]} 6. Be2 {[%clk 0:03:00]}  c6 {[%clk 0:02:56]} 7. O-O {[%clk 0:03:00]}  Bg4 {[%clk 0:02:57]} 8. c4 {[%clk 0:02:59]}  e6 {[%clk 0:02:56]} 9. Nc3 {[%clk 0:02:59]}  Nbd7 {[%clk 0:02:53]} 10. a4 {[%clk 0:02:57]}  a5 {[%clk 0:02:52]} 11. Ba3 {[%clk 0:02:55]}  Re8 {[%clk 0:02:53]} 12. Rc1 {[%clk 0:02:56]}  Bf8 {[%clk 0:02:52]} 13. Bxf8 {[%clk 0:02:53]}  Nxf8 {[%clk 0:02:53]} 14. Ne5 {[%clk 0:02:51]}  Bxe2 {[%clk 0:02:54]} 15. Qxe2 {[%clk 0:02:51]}  N8d7 {[%clk 0:02:54]} 16. f4 {[%clk 0:02:50]}  Qb6 {[%clk 0:02:54]} 17. c5 {[%clk 0:02:25]}  Qc7 {[%clk 0:02:33]} 18. g4 {[%clk 0:02:20]}  Kg7 {[%clk 0:02:28]} 19. Qg2 {[%clk 0:02:10]}  Rf8 {[%clk 0:02:23]} 20. Rc2 {[%clk 0:02:07]}  Ng8 {[%clk 0:02:22]} 21. e4 {[%clk 0:01:49]}  dxe4 {[%clk 0:02:13]} 22. Nxe4 {[%clk 0:01:48]}  Ngf6 {[%clk 0:02:14]} 23. Nd6 {[%clk 0:01:46]}  Ne8 {[%clk 0:02:10]} 24. Ndc4 {[%clk 0:01:37]}  Nef6 {[%clk 0:02:08]} 25. f5 {[%clk 0:01:32]}  exf5 {[%clk 0:02:05]} 26. gxf5 {[%clk 0:01:32]}  Rae8 {[%clk 0:02:03]} 27. Rcf2 {[%clk 0:01:31]}  Re7 {[%clk 0:02:00]} 28. Qg5 {[%clk 0:00:53]}  h6 {[%clk 0:01:37]} 29. Qg2 {[%clk 0:00:51]}  g5 {[%clk 0:01:31]} 30. h4 {[%clk 0:00:51]}  Rg8 {[%clk 0:01:31]} 31. Kh1 {[%clk 0:00:43]}  Kf8 {[%clk 0:01:29]} 32. Qh2 {[%clk 0:00:35]}  Nxe5 {[%clk 0:01:17]} 33. Nxe5 {[%clk 0:00:34]}  g4 {[%clk 0:01:15]} 34. Qf4 {[%clk 0:00:29]}  Rh8 {[%clk 0:01:08]} 35. Nxg4 {[%clk 0:00:27]}  Qxf4 {[%clk 0:01:07]} 36. Rxf4 {[%clk 0:00:28]}  Nd5 {[%clk 0:01:06]} 37. R4f3 {[%clk 0:00:28]}  Re4 {[%clk 0:01:05]} 38. Ne5 {[%clk 0:00:23]}  Rxh4+ {[%clk 0:01:06]} 39. Kg2 {[%clk 0:00:22]}  Rg8+ {[%clk 0:01:06]} 40. Kf2 {[%clk 0:00:21]}  Rxd4 {[%clk 0:01:04]} 41. Rh1 {[%clk 0:00:20]}  Re4 {[%clk 0:00:53]} 42. Nd3 {[%clk 0:00:15]}  Nf6 {[%clk 0:00:53]} 43. Rf4 {[%clk 0:00:15]}  Rg4 {[%clk 0:00:48]} 44. Rxe4 {[%clk 0:00:14]}  Rxe4 {[%clk 0:00:45]} 45. Kf3 {[%clk 0:00:14]}  Rd4 {[%clk 0:00:45]} 46. Ke3 {[%clk 0:00:14]}  Rd5 {[%clk 0:00:46]} 47. Rf1 {[%clk 0:00:12]}  h5 {[%clk 0:00:43]} 48. Rf4 {[%clk 0:00:12]}  Ke7 {[%clk 0:00:43]} 49. b4 {[%clk 0:00:12]}  Nd7 {[%clk 0:00:42]} 50. bxa5 {[%clk 0:00:05]}  Nxc5 {[%clk 0:00:37]} 51. Nxc5 {[%clk 0:00:05]}  Rxc5 {[%clk 0:00:38]} 52. Rb4 {[%clk 0:00:05]}  Rxa5 {[%clk 0:00:38]} 53. Rxb7+ {[%clk 0:00:06]}  Kf6 {[%clk 0:00:39]} 54. Rb6 {[%clk 0:00:06]}  Rxa4 {[%clk 0:00:38]} 55. Rxc6+ {[%clk 0:00:06]}  Kxf5 {[%clk 0:00:39]} 56. Kf2 {[%clk 0:00:06]}  Kg4 {[%clk 0:00:38]} 57. Kg2 {[%clk 0:00:06]}  h4 {[%clk 0:00:37]} 58. Rf6 {[%clk 0:00:06]}  Ra7 {[%clk 0:00:36]} 59. Kh2 {[%clk 0:00:06]}  Kg5 {[%clk 0:00:37]} 60. Rb6 {[%clk 0:00:05]}  f5 {[%clk 0:00:37]} 61. Rb8 {[%clk 0:00:05]}  Ra2+ {[%clk 0:00:37]} 62. Kh3 {[%clk 0:00:05]}  Ra3+ {[%clk 0:00:38]} 63. Kh2 {[%clk 0:00:05]}  Kg4 {[%clk 0:00:38]} 64. Rg8+ {[%clk 0:00:05]}  Kf3 {[%clk 0:00:39]} 65. Rh8 {[%clk 0:00:06]}  Ra2+ {[%clk 0:00:36]} 66. Kh3 {[%clk 0:00:07]}  Ra1 {[%clk 0:00:35]} 67. Kh2 {[%clk 0:00:06]}  Ra4 {[%clk 0:00:32]} 68. Rf8 {[%clk 0:00:05]}  f4 {[%clk 0:00:30]} 69. Kh3 {[%clk 0:00:05]}  Ra1 {[%clk 0:00:29]} 70. Kh2 {[%clk 0:00:05]}  Ke3 {[%clk 0:00:28]} 71. Re8+ {[%clk 0:00:05]}  Kf2 {[%clk 0:00:28]} 72. Rh8 {[%clk 0:00:05]}  f3 {[%clk 0:00:27]} 73. Re8 {[%clk 0:00:04]}  Kf1 {[%clk 0:00:27]} 74. Rf8 {[%clk 0:00:03]}  Ra2+ {[%clk 0:00:25]} 75. Kh3 {[%clk 0:00:03]}  f2 {[%clk 0:00:25]} 76. Kxh4 {[%clk 0:00:03]}  Kg1 {[%clk 0:00:23]} 77. Rg8+ {[%clk 0:00:02]}  Kh1 {[%clk 0:00:22]} 78. Rf8 {[%clk 0:00:02]}  Kg2 {[%clk 0:00:23]} 79. Rg8+ {[%clk 0:00:03]}  Kf1 {[%clk 0:00:22]} 80. Kg3 {[%clk 0:00:00]}  Ke1 {[%clk 0:00:18]} 0-1


[Site "https://www.chess.com"]

[Event "Titled Tuesday Blitz July 25 Late 2023"]
[White "Ozates, Tuna"]
[Black "Oro, Faustino"]
[WhiteFideId "6354521"]
[BlackFideId "20000197"]
[WhiteElo "2600"]
[BlackElo "2785"]
[Result "0-1"]
[Round "10"]
[TimeControl "180+2"]
[Date "2023.07.25"]
[WhiteClock "0:00:00"]
[BlackClock "0:00:15"]
[Board "23"]

1. e4 {[%clk 0:03:00]}  e5 {[%clk 0:02:58]} 2. Nf3 {[%clk 0:03:00]}  Nc6 {[%clk 0:02:59]} 3. Bb5 {[%clk 0:03:01]}  a6 {[%clk 0:02:59]} 4. Ba4 {[%clk 0:03:01]}  Nf6 {[%clk 0:02:59]} 5. d3 {[%clk 0:03:01]}  b5 {[%clk 0:02:55]} 6. Bb3 {[%clk 0:03:01]}  Bc5 {[%clk 0:02:55]} 7. O-O {[%clk 0:03:01]}  d6 {[%clk 0:02:55]} 8. c3 {[%clk 0:03:01]}  O-O {[%clk 0:02:55]} 9. Nbd2 {[%clk 0:03:02]}  h6 {[%clk 0:02:53]} 10. h3 {[%clk 0:02:59]}  Be6 {[%clk 0:02:50]} 11. Bc2 {[%clk 0:02:59]}  Ba7 {[%clk 0:02:45]} 12. Re1 {[%clk 0:02:59]}  Ne7 {[%clk 0:02:45]} 13. Nf1 {[%clk 0:02:59]}  Ng6 {[%clk 0:02:45]} 14. Ng3 {[%clk 0:02:59]}  Re8 {[%clk 0:02:42]} 15. d4 {[%clk 0:02:59]}  Qc8 {[%clk 0:02:23]} 16. Kh2 {[%clk 0:02:54]}  c5 {[%clk 0:02:17]} 17. d5 {[%clk 0:02:45]}  Bd7 {[%clk 0:02:17]} 18. Be3 {[%clk 0:02:40]}  c4 {[%clk 0:02:10]} 19. Qd2 {[%clk 0:02:38]}  Bxe3 {[%clk 0:02:08]} 20. fxe3 {[%clk 0:02:39]}  Nh7 {[%clk 0:02:02]} 21. Rf1 {[%clk 0:02:38]}  Qc5 {[%clk 0:01:56]} 22. Rf2 {[%clk 0:02:35]}  Ne7 {[%clk 0:01:54]} 23. Raf1 {[%clk 0:02:33]}  Rf8 {[%clk 0:01:48]} 24. Nh4 {[%clk 0:02:31]}  g6 {[%clk 0:01:47]} 25. Qe2 {[%clk 0:02:24]}  Rae8 {[%clk 0:01:29]} 26. Rf3 {[%clk 0:02:16]}  Qc8 {[%clk 0:01:20]} 27. R1f2 {[%clk 0:02:13]}  Ng5 {[%clk 0:01:19]} 28. Rf6 {[%clk 0:02:13]}  Bxh3 {[%clk 0:01:17]} 29. Nhf5 {[%clk 0:02:03]}  Bxf5 {[%clk 0:01:09]} 30. exf5 {[%clk 0:02:04]}  Nxd5 {[%clk 0:00:48]} 31. Rxd6 {[%clk 0:02:01]}  Qc5 {[%clk 0:00:41]} 32. Rxa6 {[%clk 0:01:44]}  Qxe3 {[%clk 0:00:33]} 33. fxg6 {[%clk 0:01:33]}  Qxe2 {[%clk 0:00:26]} 34. Nxe2 {[%clk 0:00:07]}  Ne3 {[%clk 0:00:19]} 35. gxf7+ {[%clk 0:00:05]}  Rxf7 {[%clk 0:00:20]} 36. Rxf7 {[%clk 0:00:05]}  Nxf7 {[%clk 0:00:19]} 37. Be4 {[%clk 0:00:03]}  Rd8 {[%clk 0:00:18]} 38. Rg6+ {[%clk 0:00:03]}  Kf8 {[%clk 0:00:18]} 39. Ng3 {[%clk 0:00:03]}  Rd2 {[%clk 0:00:17]} 40. Nh5 {[%clk 0:00:02]}  Ng5 {[%clk 0:00:15]} 41. Bc6 {[%clk 0:00:01]}  e4 {[%clk 0:00:15]} 42. Rf6+ {[%clk 0:00:00]}  Ke7 {[%clk 0:00:15]} 0-1


[Site "https://www.chess.com"]

[Event "Titled Tuesday Blitz July 25 Late 2023"]
[White "Hambleton, Aman"]
[Black "Przybylski, Wojciech"]
[WhiteFideId "2606577"]
[BlackFideId "1117599"]
[WhiteElo "2765"]
[BlackElo "2565"]
[Result "0-1"]
[Round "10"]
[TimeControl "180+2"]
[Date "2023.07.25"]
[WhiteClock "0:00:00"]
[BlackClock "0:00:44"]
[Board "25"]

1. d4 {[%clk 0:03:00]}  Nf6 {[%clk 0:02:59]} 2. Bf4 {[%clk 0:03:00]}  e6 {[%clk 0:02:56]} 3. e3 {[%clk 0:03:00]}  Be7 {[%clk 0:02:56]} 4. h3 {[%clk 0:02:59]}  O-O {[%clk 0:02:56]} 5. Nf3 {[%clk 0:03:00]}  b6 {[%clk 0:02:55]} 6. Nbd2 {[%clk 0:02:59]}  Bb7 {[%clk 0:02:55]} 7. Bd3 {[%clk 0:03:00]}  c5 {[%clk 0:02:55]} 8. c3 {[%clk 0:03:00]}  d6 {[%clk 0:02:55]} 9. O-O {[%clk 0:02:59]}  Nbd7 {[%clk 0:02:55]} 10. Bh2 {[%clk 0:02:59]}  Re8 {[%clk 0:02:55]} 11. Qe2 {[%clk 0:02:51]}  a6 {[%clk 0:02:54]} 12. a4 {[%clk 0:02:51]}  h6 {[%clk 0:02:51]} 13. Rfe1 {[%clk 0:02:50]}  Bf8 {[%clk 0:02:48]} 14. Nc4 {[%clk 0:02:42]}  Qc7 {[%clk 0:02:43]} 15. Ncd2 {[%clk 0:02:19]}  e5 {[%clk 0:02:36]} 16. dxe5 {[%clk 0:02:20]}  Nxe5 {[%clk 0:02:32]} 17. Bxe5 {[%clk 0:02:16]}  dxe5 {[%clk 0:02:31]} 18. e4 {[%clk 0:02:16]}  Nh5 {[%clk 0:02:22]} 19. g3 {[%clk 0:02:16]}  Nf6 {[%clk 0:02:20]} 20. Bc4 {[%clk 0:02:00]}  g6 {[%clk 0:02:14]} 21. Kh2 {[%clk 0:01:37]}  Bg7 {[%clk 0:02:11]} 22. Nh4 {[%clk 0:01:20]}  Kh7 {[%clk 0:02:10]} 23. Ng2 {[%clk 0:01:20]}  Re7 {[%clk 0:02:04]} 24. Ne3 {[%clk 0:01:03]}  Rd7 {[%clk 0:02:02]} 25. f3 {[%clk 0:00:51]}  h5 {[%clk 0:01:53]} 26. h4 {[%clk 0:00:44]}  Bh6 {[%clk 0:01:51]} 27. Ndf1 {[%clk 0:00:45]}  Rd6 {[%clk 0:01:12]} 28. Rad1 {[%clk 0:00:40]}  Qd7 {[%clk 0:01:11]} 29. Rxd6 {[%clk 0:00:38]}  Qxd6 {[%clk 0:01:11]} 30. Bxf7 {[%clk 0:00:38]}  Qd7 {[%clk 0:01:07]} 31. Bb3 {[%clk 0:00:34]}  Bc8 {[%clk 0:01:07]} 32. Kg1 {[%clk 0:00:23]}  b5 {[%clk 0:01:06]} 33. Rd1 {[%clk 0:00:21]}  Qe8 {[%clk 0:01:04]} 34. axb5 {[%clk 0:00:08]}  axb5 {[%clk 0:01:04]} 35. Nd5 {[%clk 0:00:09]}  Nxd5 {[%clk 0:01:00]} 36. Bxd5 {[%clk 0:00:09]}  Ra7 {[%clk 0:00:53]} 37. Kg2 {[%clk 0:00:07]}  c4 {[%clk 0:00:49]} 38. Ne3 {[%clk 0:00:03]}  Rg7 {[%clk 0:00:49]} 39. Kf2 {[%clk 0:00:02]}  g5 {[%clk 0:00:48]} 40. Nf5 {[%clk 0:00:02]}  Bxf5 {[%clk 0:00:47]} 41. exf5 {[%clk 0:00:03]}  gxh4 {[%clk 0:00:48]} 42. Be4 {[%clk 0:00:01]}  Kh8 {[%clk 0:00:46]} 43. f6 {[%clk 0:00:02]}  hxg3+ {[%clk 0:00:46]} 44. Kg2 {[%clk 0:00:02]}  Rg5 {[%clk 0:00:45]} 45. Rd6 {[%clk 0:00:01]}  h4 {[%clk 0:00:45]} 46. Qd1 {[%clk 0:00:02]}  h3+ {[%clk 0:00:45]} 47. Kg1 {[%clk 0:00:01]}  g2 {[%clk 0:00:44]} 48. Rd8 {[%clk 0:00:01]}  h2+ {[%clk 0:00:44]} 49. Kxh2 {[%clk 0:00:02]}  g1=Q+ {[%clk 0:00:44]} 50. Qxg1 {[%clk 0:00:02]}  Qxd8 {[%clk 0:00:44]} 51. Qb6 {[%clk 0:00:01]}  Qxb6 {[%clk 0:00:44]} 52. f7 {[%clk 0:00:00]}  Qf2+ {[%clk 0:00:44]} 0-1


[Site "https://www.chess.com"]